bitfinex-derivatives/quotes_SOLF0:USTF0_20250117
["timestamp","ask_amount","ask_price","bid_price","bid_amount"]
[1737143742263,4.5927,217.57,217.5,4.5942]
[1737143742569,4.593,217.56,217.5,4.5942]
[1737143743161,4.5932,217.55,217.44,3.81029212]
[1737143743363,4.5932,217.55,217.44,11.1485805]
[1737143743766,4.5932,217.55,217.49,4.5944]
[1737143744167,4.5936,217.53,217.48,4.5946]
[1737143744466,4.5936,217.53,217.44,11.1485805]
[1737143745166,4.5936,217.53,217.48,4.5946]
[1737143745963,11.1485805,217.55,217.44,11.1485805]
[1737143746267,11.1485805,217.52,217.41,1.5562]
[1737143747568,4.5944,217.5,217.45,4.5953]
[1737143747867,4.5944,217.5,217.41,1.5562]
[1737143747868,11.1485805,217.52,217.41,1.5562]
[1737143748264,4.5946,217.49,217.44,4.5954]
[1737143748766,11.1485805,217.52,217.41,1.5562]
[1737143748968,11.1485805,217.52,217.39,11.1485805]
[1737143749159,11.1485805,217.49,217.36,11.1485805]
[1737143749364,11.1485805,217.49,217.36,16.3685805]
[1737143749565,4.5953,217.45,217.36,20.18207034]
[1737143751071,4.5953,217.45,217.39,4.5963]
[1737143751667,11.1485805,217.49,217.39,4.5963]
[1737143751872,4.5955,217.44,217.39,4.5963]
[1737143753170,11.1485805,217.49,217.39,4.5963]
[1737143753370,4.5958,217.43,217.39,4.5963]
[1737143756578,4.5955,217.44,217.4,4.5963]
[1737143757278,4.5949,217.47,217.43,4.5956]
[1737143757478,4.5808,217.51,217.39,11.1485805]
[1737143757782,4.5947,217.48,217.43,4.5956]
[1737143758776,4.5808,217.51,217.39,11.1485805]
[1737143758973,4.594,217.51,217.46,4.5948]
[1737143759178,11.1485805,217.53,217.46,4.5948]
[1737143759376,11.1485805,217.53,217.39,11.1485805]
[1737143759572,4.5944,217.49,217.44,4.5953]
[1737143759777,4.5944,217.49,217.43,7.13972631]
[1737143760179,11.73402631,217.5,217.43,7.13972631]
[1737143760379,190.46255752,217.57,217.45,7.13972631]
[1737143760677,7.13972631,217.52,217.45,7.13972631]
[1737143760878,4.594,217.51,217.47,4.5947]
[1737143761579,4.594,217.51,217.46,4.595]
[1737143761773,7.13972631,217.5,217.46,4.595]
[1737143762284,7.13972631,217.48,217.44,4.5953]
[1737143763081,4.5944,217.49,217.45,4.5952]
[1737143763981,4.5947,217.48,217.43,11.73522631]
[1737143764183,11.73442631,217.48,217.43,4.5955]
[1737143764576,11.73442631,217.48,217.41,7.13972631]
[1737143764577,4.5947,217.48,217.41,7.13972631]
[1737143764783,4.5945,217.49,217.45,4.5952]
[1737143764981,7.13972631,217.48,217.36,3.81348984]
[1737143765177,4.5945,217.49,217.44,4.5953]
[1737143766287,4.5945,217.49,217.45,4.5952]
[1737143766685,4.5948,217.48,217.43,3.77539513]
[1737143766885,4.5948,217.48,217.43,8.37099513]
[1737143767087,4.5948,217.48,217.43,4.5956]
[1737143767380,4.5949,217.47,217.44,3.77539513]
[1737143768486,4.5949,217.47,217.45,3.77539513]
[1737143768677,4.5949,217.47,217.46,3.77539513]
[1737143771785,4.5949,217.47,217.41,7.13972631]
[1737143771981,4.5949,217.47,217.44,4.5955]
[1737143772686,7.13972631,217.51,217.35,8.87613164]
[1737143772886,4.5953,217.45,217.38,7.13972631]
[1737143773285,4.5953,217.45,217.4,7.13972631]
[1737143773487,7.13972631,217.49,217.4,7.13972631]
[1737143773785,7.13972631,217.49,217.42,7.13972631]
[1737143774790,4.5949,217.47,217.42,7.13972631]
[1737143775690,4.5947,217.48,217.44,4.5954]
[1737143775884,86.02,217.61,217.37,5.1]
[1737143775885,185.87715752,217.66,217.38,13.82]
[1737143776092,7.13972631,217.58,217.37,18.92]
[1737143776391,4.594,217.51,217.45,4.5951]
[1737143776890,7.13972631,217.52,217.37,5.1]
[1737143777087,4.5945,217.49,217.42,11.73552631]
[1737143777693,4.5945,217.49,217.42,7.13972631]
[1737143777887,4.5945,217.49,217.43,4.5957]
[1737143778083,4.595,217.47,217.38,5.14]
[1737143778288,4.595,217.47,217.35,8.87613164]
[1737143778289,7.13972631,217.44,217.37,7.13972631]
[1737143778782,185.87715752,217.55,217.39,7.13972631]
[1737143778990,7.13972631,217.46,217.39,7.13972631]
[1737143779382,4.5953,217.45,217.39,7.13972631]
[1737143779686,7.13972631,217.41,217.35,7.13972631]
[1737143779881,4.5956,217.44,217.37,7.13972631]
[1737143780088,4.5956,217.44,217.38,4.5967]
[1737143780284,4.5956,217.44,217.39,7.13972631]
[1737143780591,4.5956,217.44,217.38,4.5967]
[1737143782684,4.5956,217.44,217.39,7.13972631]
[1737143783090,4.5956,217.44,217.39,11.73622631]
[1737143785395,4.5956,217.44,217.4,4.5962]
[1737143785789,185.87715752,217.55,217.34,1.4598]
[1737143785993,185.87715752,217.55,217.44,7.13972631]
[1737143786193,7.13972631,217.49,217.34,1.4598]
[1737143786393,4.5951,217.46,217.39,7.13972631]
[1737143786898,4.5953,217.45,217.4,4.5963]
[1737143788292,7.13972631,217.49,217.41,7.13972631]
[1737143788492,7.13972631,217.47,217.4,4.5963]
[1737143788692,7.13972631,217.49,217.4,4.5963]
[1737143788895,7.13972631,217.49,217.41,7.13972631]
[1737143789097,4.5955,217.45,217.41,11.73582631]
[1737143789397,7.13972631,217.52,217.43,7.13972631]
[1737143789598,7.13972631,217.52,217.45,7.13972631]
[1737143789798,4.5942,217.5,217.46,4.595]
[1737143790099,7.13972631,217.52,217.45,7.13972631]
[1737143790397,7.13972631,217.5,217.43,7.13972631]
[1737143791199,4.5944,217.49,217.45,4.5951]
[1737143791399,4.5944,217.49,217.43,7.13972631]
[1737143791697,4.5944,217.49,217.46,4.595]
[1737143793592,7.13972631,217.5,217.45,4.5952]
[1737143793797,4.5947,217.48,217.45,4.5952]
[1737143796093,4.5941,217.51,217.46,4.5949]
[1737143796299,7.13972631,217.51,217.46,4.5949]
[1737143797502,7.13972631,217.51,217.43,7.13972631]
[1737143797698,4.5945,217.49,217.44,4.5953]
[1737143798200,4.5945,217.49,217.45,4.5952]
[1737143802612,7.13972631,217.51,217.43,7.13972631]
[1737143803109,4.5944,217.5,217.45,4.5952]
[1737143805014,4.5944,217.49,217.45,4.5952]
[1737143805811,4.5946,217.48,217.45,4.5952]
[1737143806012,7.13972631,217.51,217.45,4.5952]
[1737143806413,7.13972631,217.53,217.45,4.5952]
[1737143806613,4.5944,217.5,217.45,4.5952]
[1737143808509,4.5944,217.5,217.46,4.595]
[1737143809010,4.5944,217.5,217.44,7.13972631]
[1737143809213,4.5944,217.5,217.46,4.595]
[1737143811817,1.6026,217.56,217.42,7.13972631]
[1737143812015,7.13972631,217.53,217.5,4.5942]
[1737143812415,7.13972631,217.53,217.46,7.13972631]
[1737143814221,11.73332631,217.53,217.49,4.5943]
[1737143814922,4.594,217.52,217.47,4.5947]
[1737143815118,7.13972631,217.53,217.46,7.13972631]
[1737143815623,4.5938,217.52,217.48,4.5945]
[1737143816920,4.5938,217.52,217.49,4.5944]
[1737143818524,11.73332631,217.53,217.49,4.5944]
[1737143819729,4.5938,217.52,217.49,4.5944]
[1737143820622,4.5925,217.59,217.54,4.5932]
[1737143820827,7.13972631,217.55,217.43,4.6954]
[1737143821028,7.13972631,217.53,217.45,7.13972631]
[1737143822227,4.5938,217.52,217.48,4.5944]
[1737143823232,11.73372631,217.51,217.43,13.75572631]
[1737143823419,7.13972631,217.51,217.43,12.15972631]
[1737143823625,7.13972631,217.49,217.43,5.02]
[1737143823825,11.73412631,217.49,217.43,5.02]
[1737143824130,11.73412631,217.49,217.41,7.13972631]
[1737143825233,11.73412631,217.49,217.44,4.5954]
[1737143825427,7.13972631,217.49,217.41,7.13972631]
[1737143826834,11.73432631,217.49,217.43,4.5955]
[1737143828130,11.73432631,217.49,217.41,7.13972631]
[1737143828432,11.73432631,217.49,217.44,4.5954]
[1737143829729,11.73432631,217.49,217.41,7.13972631]
[1737143830632,11.73432631,217.49,217.44,4.5953]
[1737143830834,11.73432631,217.49,217.41,7.13972631]
[1737143831731,11.73432631,217.49,217.45,4.5952]
[1737143836338,4.5955,217.44,217.4,4.5963]
[1737143836537,4.5955,217.44,217.37,7.13972631]
[1737143836830,7.13972631,217.43,217.37,7.13972631]
[1737143837335,7.13972631,217.43,217.38,4.5966]
[1737143837528,7.13972631,217.43,217.37,7.13972631]
[1737143837930,7.13972631,217.43,217.39,4.5964]
[1737143838431,11.73542631,217.43,217.39,4.5964]
[1737143838738,7.13972631,217.43,217.4,4.5963]
[1737143840338,7.13972631,217.43,217.37,7.13972631]
[1737143840539,11.73552631,217.43,217.38,4.5966]
[1737143841139,7.13972631,217.41,217.35,7.13972631]
[1737143841437,7.13972631,217.41,217.33,7.13972631]
[1737143841638,4.5964,217.4,217.33,7.13972631]
[1737143841839,4.5964,217.4,217.35,4.5973]
[1737143842941,7.13972631,217.39,217.35,4.5973]
[1737143843741,7.13972631,217.39,217.33,7.13972631]
[1737143843742,7.13972631,217.39,217.36,4.5971]
[1737143844640,4.5969,217.38,217.33,4.5977]
[1737143844837,4.5969,217.38,217.32,7.13972631]
[1737143845138,7.13972631,217.39,217.32,7.13972631]
[1737143845535,7.13972631,217.39,217.36,4.5972]
[1737143845732,7.13972631,217.39,217.32,7.13972631]
[1737143846341,7.13972631,217.39,217.35,4.5972]
[1737143847244,7.13972631,217.39,217.36,4.5971]
[1737143847741,11.73622631,217.4,217.32,7.13972631]
[1737143848140,11.73622631,217.4,217.34,7.13972631]
[1737143848538,11.73622631,217.4,217.33,7.13972631]
[1737143849042,11.73622631,217.4,217.36,4.597]
[1737143850843,11.73622631,217.4,217.37,4.5969]
[1737143852545,4.5965,217.4,217.37,4.5969]
[1737143853537,7.13972631,217.41,217.35,7.13972631]
[1737143853743,7.13972631,217.44,217.37,7.13972631]
[1737143854738,4.5957,217.43,217.39,4.5965]
[1737143854939,7.13972631,217.42,217.39,4.5965]
[1737143855243,11.73562631,217.42,217.39,4.5965]
[1737143855446,7.13972631,217.4,217.35,4.5974]
[1737143855944,4.5966,217.39,217.35,4.5974]
[1737143859348,7.13972631,217.38,217.3,4.92]
[1737143859551,4.5971,217.37,217.33,4.5976]
[1737143862257,7.13972631,217.36,217.33,4.5976]
[1737143864855,11.73652631,217.38,217.34,4.5975]
[1737143865155,11.73652631,217.38,217.32,7.13972631]
[1737143865156,7.13972631,217.38,217.32,7.13972631]
[1737143865953,7.13972631,217.38,217.3,7.13972631]
[1737143866153,9.1887,217.5,217.32,7.13972631]
[1737143866357,7.13972631,217.41,217.34,7.13972631]
[1737143866559,9.1887,217.5,217.29,4.88]
[1737143866749,7.13972631,217.43,217.36,7.13972631]
[1737143866954,7.13972631,217.41,217.33,7.13972631]
[1737143867155,11.73642631,217.39,217.34,4.5974]
[1737143867456,7.13972631,217.39,217.34,4.5974]
[1737143868460,7.13972631,217.37,217.29,4.88]
[1737143868660,11.73682631,217.37,217.32,4.5979]
[1737143870359,4.598,217.33,217.28,4.5988]
[1737143870555,7.13972631,217.32,217.28,4.5988]
[1737143870758,7.13972631,217.32,217.23,69.09965025]
[1737143870759,7.13972631,217.32,217.26,4.88]
[1737143871353,11.73772631,217.32,217.27,4.5989]
[1737143871762,7.13972631,217.32,217.26,4.88]
[1737143872057,11.73812631,217.3,217.25,4.5993]
[1737143872363,7.13972631,217.28,217.25,4.5993]
[1737143872658,7.13972631,217.28,217.23,73.97965025]
[1737143873458,7.13972631,217.26,217.23,73.97965025]
[1737143873663,7.13972631,217.26,217.2,4.86]
[1737143873857,7.13972631,217.26,217.18,11.99972631]
[1737143874062,185.87715752,217.41,217.2,4.6005]
[1737143874063,7.13972631,217.24,217.2,4.6005]
[1737143874262,199.67715752,217.41,217.16,7.13972631]
[1737143874263,7.13972631,217.22,217.16,7.13972631]
[1737143874459,7.13972631,217.22,217.17,4.86]
[1737143875257,4.6615,217.36,217.17,4.86]
[1737143875561,7.13972631,217.3,217.23,7.13972631]
[1737143875761,7.13972631,217.3,217.27,4.5989]
[1737143876460,7.13972631,217.3,217.24,4.5997]
[1737143876655,7.13972631,217.28,217.24,4.5997]
[1737143876853,7.13972631,217.28,217.16,71.19300261]
[1737143876854,11.73862631,217.28,217.2,12.01972631]
[1737143877057,7.13972631,217.28,217.22,4.6001]
[1737143877263,7.13972631,217.27,217.22,4.6001]
[1737143877663,7.13972631,217.27,217.23,4.5999]
[1737143877965,7.13972631,217.29,217.22,7.13972631]
[1737143878462,7.13972631,217.29,217.25,4.5993]
[1737143879362,7.13972631,217.31,217.28,4.5989]
[1737143879564,7.13972631,217.31,217.22,7.13972631]
[1737143879960,7.13972631,217.29,217.22,7.13972631]
[1737143881766,7.13972631,217.29,217.26,4.5991]
[1737143882466,7.13972631,217.29,217.27,4.599]
[1737143884170,4.6615,217.36,217.31,4.5982]
[1737143884474,10.22242631,217.36,217.28,7.13972631]
[1737143884775,7.13972631,217.36,217.33,4.5976]
[1737143886565,7.13972631,217.38,217.34,4.5974]
[1737143887075,7.13972631,217.36,217.29,11.99972631]
[1737143887269,7.13972631,217.36,217.33,4.5978]
[1737143887469,11.73652631,217.38,217.33,4.5978]
[1737143888076,7.13972631,217.38,217.34,4.5975]
[1737143890071,11.73652631,217.38,217.34,4.5975]
[1737143891076,4.5968,217.38,217.34,4.5975]
[1737143891375,7.13972631,217.36,217.34,4.5975]
[1737143898786,4.5961,217.42,217.37,4.5969]
[1737143898981,7.13972631,217.4,217.33,7.13972631]
[1737143899484,4.7535,217.44,217.35,7.13972631]
[1737143899684,7.13972631,217.42,217.35,7.13972631]
[1737143899886,4.7535,217.44,217.33,7.13972631]
[1737143899887,7.13972631,217.4,217.33,7.13972631]
[1737143900486,7.13972631,217.4,217.38,4.5966]
[1737143902278,7.13972631,217.4,217.33,7.13972631]
[1737143902480,7.13972631,217.4,217.38,4.5967]
[1737143906787,7.13972631,217.4,217.3,1.4675]
[1737143907092,7.13972631,217.36,217.31,4.8]
[1737143907787,7.13972631,217.36,217.33,4.5976]
[1737143908092,7.13972631,217.34,217.26,6.8246731]
[1737143908282,7.13972631,217.32,217.29,4.5985]
[1737143908484,7.13972631,217.32,217.27,4.82]
[1737143909387,7.13972631,217.32,217.29,4.5985]
[1737143911594,7.13972631,217.32,217.27,4.82]
[1737143911595,7.13972631,217.3,217.27,9.4189]
[1737143912694,7.13972631,217.3,217.27,4.5989]
[1737143913787,4.7535,217.44,217.26,6.8246731]
[1737143913988,7.13972631,217.31,217.28,4.5987]
[1737143915593,7.13972631,217.31,217.29,4.5986]
[1737143919390,7.13972631,217.31,217.28,4.5988]
[1737143919798,11.73802631,217.31,217.26,6.8246731]
[1737143919999,11.73802631,217.31,217.26,11.4237731]
[1737143920999,11.73802631,217.31,217.27,4.599]
[1737143921200,4.5983,217.31,217.27,4.599]
[1737143921401,11.73802631,217.31,217.27,4.599]
[1737143921801,7.13972631,217.31,217.27,4.599]
[1737143922902,7.13972631,217.31,217.26,6.8246731]
[1737143923200,11.73812631,217.31,217.26,6.8246731]
[1737143923798,9.1919,217.42,217.26,6.8246731]
[1737143924002,11.73772631,217.32,217.27,4.5989]
[1737143928596,7.13972631,217.3,217.27,4.5989]
[1737143932507,7.13972631,217.3,217.26,11.4238731]
[1737143933608,7.13972631,217.3,217.27,4.5991]
[1737143936013,7.13972631,217.28,217.26,6.8246731]
[1737143936407,7.13972631,217.28,217.21,4.6002]
[1737143936607,7.13972631,217.24,217.16,84.99300261]
[1737143936909,7.13972631,217.24,217.21,4.6003]
[1737143938703,9.1938,217.38,217.21,7.13972631]
[1737143938908,7.13972631,217.29,217.23,7.13972631]
[1737143939611,7.13972631,217.29,217.25,4.5994]
[1737143939913,7.13972631,217.27,217.25,4.5994]
[1737143940114,7.13972631,217.27,217.21,7.13972631]
[1737143941215,7.13972631,217.27,217.24,4.5997]
[1737143941413,4.5986,217.29,217.24,4.5997]
[1737143941614,7.13972631,217.27,217.24,4.5997]
[1737143943212,7.13972631,217.27,217.21,7.13972631]
[1737143943413,7.13972631,217.27,217.19,7.13972631]
[1737143945209,7.13972631,217.27,217.24,4.5996]
[1737143946412,7.13972631,217.25,217.23,4.5999]
[1737143947217,7.13972631,217.25,217.17,7.13972631]
[1737143947419,7.13972631,217.23,217.21,4.6002]
[1737143949208,7.13972631,217.23,217.18,4.78]
[1737143949412,7.13972631,217.23,217.22,4.6001]
[1737143949919,7.13972631,217.25,217.23,4.5999]
[1737143952317,7.13972631,217.25,217.18,4.78]
[1737143952515,7.13972631,217.25,217.22,4.6001]
[1737143963329,7.13972631,217.23,217.22,4.6001]
[1737143967538,7.13972631,217.25,217.22,4.6001]
[1737143968039,7.13972631,217.23,217.22,4.6001]
[1737143975643,7.13972631,217.23,217.21,4.6003]
[1737143980046,3.051,217.36,217.24,4.5995]
[1737143980346,7.13972631,217.27,217.24,4.5995]
[1737143981739,7.13972631,217.25,217.18,18.1900494]
[1737143981943,7.13972631,217.25,217.21,4.6003]
[1737143982437,4.599,217.28,217.23,4.5999]
[1737143982643,7.13972631,217.26,217.18,18.1900494]
[1737143982937,7.13972631,217.24,217.18,11.05032309]
[1737143983139,7.13972631,217.24,217.2,4.6004]
[1737143984244,7.13972631,217.24,217.21,4.6003]
[1737143988551,7.13972631,217.22,217.21,4.6003]
[1737143989348,7.13972631,217.22,217.18,6.27032309]
[1737143989548,7.13972631,217.22,217.16,71.19300261]
[1737143989549,7.13972631,217.19,217.11,11.13986381]
[1737143989749,7.13972631,217.15,217.11,11.13986381]
[1737143990150,7.13972631,217.13,217.06,6.35986381]
[1737143990349,7.13972631,217.13,217.07,4.78]
[1737143991353,7.13972631,217.13,217.1,4.6026]
[1737143992652,7.13972631,217.13,217.07,11.91972631]
[1737143993359,7.13972631,217.15,217.12,4.6022]
[1737143994756,7.13972631,217.15,217.13,4.602]
[1737143996361,7.13972631,217.15,217.14,4.6018]
[1737143997859,7.13972631,217.15,217.1,4.6021]
[1737143998058,7.13972631,217.15,217.09,7.13972631]
[1737143998559,7.13972631,217.15,217.13,4.6014]
[1737143998760,7.13972631,217.15,217.09,7.13972631]
[1737144000159,7.13972631,217.15,217.14,4.6014]
[1737144002056,7.13972631,217.16,217.09,7.13972631]
[1737144002260,7.13972631,217.16,217.15,4.6011]
[1737144002564,7.13972631,217.16,217.09,7.13972631]
[1737144002863,7.13972631,217.16,217.15,4.6011]
[1737144003266,4.5991,217.25,217.19,4.6002]
[1737144003462,7.13972631,217.2,217.08,13.8]
[1737144003764,4.7164,217.26,217.12,4.6018]
[1737144003765,7.13972631,217.13,217.12,4.6018]
[1737144003966,7.13972631,217.13,217.05,13.8]
[1737144004157,7.13972631,217.1,217.05,18.58]
[1737144004361,7.13972631,217.1,217.0,6.35986381]
[1737144004561,7.13972631,217.1,217.02,7.13972631]
[1737144004763,7.13972631,217.06,217.02,4.6037]
[1737144004965,3.1738,217.18,217.0,6.35986381]
[1737144004966,7.13972631,217.04,217.0,6.35986381]
[1737144005263,7.13972631,217.06,217.01,4.6041]
[1737144005459,7.13972631,217.06,216.99,7.13972631]
[1737144005764,3.1738,217.09,216.99,7.13972631]
[1737144005968,7.13972631,217.07,217.01,7.13972631]
[1737144007165,7.13972631,217.09,217.01,7.13972631]
[1737144007369,7.13972631,217.11,217.05,7.13972631]
[1737144007767,7.13972631,217.13,217.05,7.13972631]
[1737144007963,7.13972631,217.15,217.07,7.13972631]
[1737144008365,7.13972631,217.13,217.09,4.6024]
[1737144008969,7.13972631,217.13,217.07,7.13972631]
[1737144010071,7.13972631,217.13,217.09,4.6023]
[1737144010571,7.13972631,217.14,217.09,4.6023]
[1737144012973,7.13972631,217.12,217.04,7.13972631]
[1737144013174,11.74152631,217.12,217.06,4.603]
[1737144013468,7.13972631,217.1,217.06,4.603]
[1737144014074,7.13972631,217.1,217.05,4.6033]
[1737144014471,7.13972631,217.08,217.02,11.91972631]
[1737144014972,7.13972631,217.08,217.04,4.6033]
[1737144015174,7.13972631,217.1,217.02,7.13972631]
[1737144015375,7.13972631,217.1,217.04,7.13972631]
[1737144015574,7.13972631,217.1,217.05,4.6032]
[1737144016479,7.13972631,217.1,217.04,7.13972631]
[1737144016780,7.13972631,217.1,217.0,4.78]
[1737144016978,7.13972631,217.1,217.03,7.13972631]
[1737144017578,7.13972631,217.08,217.01,7.13972631]
[1737144018081,7.13972631,217.08,217.04,4.6033]
[1737144021078,11.74242631,217.08,217.03,4.6036]
[1737144021579,11.74192631,217.1,217.03,7.13972631]
[1737144022079,7.13972631,217.08,217.04,4.6034]
[1737144023881,7.13972631,217.08,217.02,7.13972631]
[1737144024183,7.13972631,217.1,217.06,4.6029]
[1737144024581,7.13972631,217.1,217.02,7.13972631]
[1737144024884,7.13972631,217.1,217.07,4.6028]
[1737144025084,7.13972631,217.1,217.02,7.13972631]
[1737144025285,7.13972631,217.08,217.06,4.603]
[1737144027085,7.13972631,217.08,217.0,7.13972631]
[1737144027481,3.1489,217.18,217.0,7.13972631]
[1737144027482,7.13972631,217.06,217.0,7.13972631]
[1737144027686,7.13972631,217.06,217.01,4.6039]
[1737144027888,7.13972631,217.06,217.0,7.13972631]
[1737144028083,7.13972631,217.06,216.97,5.96040721]
[1737144028285,7.13972631,217.04,216.97,5.96040721]
[1737144028585,7.13972631,217.02,216.97,5.96040721]
[1737144029584,7.13972631,217.02,216.98,4.6047]
[1737144030687,7.13972631,217.02,216.97,5.96040721]
[1737144031185,11.74322631,217.04,216.97,13.10013352]
[1737144031388,11.74322631,217.04,216.98,4.6046]
[1737144032383,7.13972631,217.0,216.97,10.56530721]
[1737144032593,7.13972631,217.0,216.97,5.96040721]
[1737144034688,11.74412631,217.0,216.97,5.96040721]
[1737144035591,11.74452631,217.0,216.97,5.96040721]
[1737144035785,7.13972631,217.0,216.97,5.96040721]
[1737144035981,7.13972631,216.98,216.94,64.69174271]
[1737144036491,7.13972631,216.98,216.91,7.13972631]
[1737144037185,4.7226,217.1,216.87,1.5844]
[1737144037186,7.13972631,216.96,216.87,1.5844]
[1737144037489,7.13972631,216.94,216.88,7.13972631]
[1737144038080,7.13972631,216.94,216.91,4.6065]
[1737144038282,7.13972631,216.94,216.88,7.13972631]
[1737144039092,7.13972631,216.94,216.92,4.6064]
[1737144039592,7.13972631,216.94,216.88,7.13972631]
[1737144039895,7.13972631,216.94,216.93,4.6063]
[1737144040693,7.13972631,216.94,216.83,1.614]
[1737144040990,7.13972631,216.87,216.82,12.63366381]
[1737144041190,7.13972631,216.87,216.82,11.13986381]
[1737144041388,7.13972631,216.87,216.82,4.78]
[1737144041788,7.13972631,216.87,216.85,4.6078]
[1737144042194,4.6876,216.98,216.82,4.78]
[1737144042391,7.13972631,216.88,216.8,7.13972631]
[1737144042694,7.13972631,216.88,216.81,4.78]
[1737144042992,7.13972631,216.86,216.81,4.78]
[1737144043987,7.13972631,216.86,216.78,8.58298638]
[1737144044194,7.13972631,216.86,216.82,4.6084]
[1737144044494,7.13972631,216.84,216.78,8.58298638]
[1737144044989,7.13972631,216.84,216.81,4.6086]
[1737144045290,7.13972631,216.82,216.78,8.58298638]
[1737144046290,7.13972631,216.8,216.78,8.58298638]
[1737144046495,7.13972631,216.8,216.76,4.6097]
[1737144046696,7.13972631,216.78,216.71,7.13972631]
[1737144046889,7.13972631,216.78,216.7,6.3681]
[1737144047089,7.13972631,216.78,216.7,13.50782631]
[1737144047690,7.13972631,216.78,216.75,4.6101]
[1737144047889,7.13972631,216.78,216.7,13.50782631]
[1737144048696,7.13972631,216.76,216.75,4.6101]
[1737144048995,7.13972631,216.78,216.75,4.6101]
[1737144049298,7.13972631,216.76,216.7,6.3681]
[1737144049495,7.13972631,216.76,216.7,4.78]
[1737144049790,1.4805,216.87,216.71,7.13972631]
[1737144050092,7.13972631,216.77,216.71,7.13972631]
[1737144050291,1.4805,216.87,216.68,101.09420111]
[1737144050491,7.13972631,216.79,216.71,7.13972631]
[1737144050690,1.4805,216.87,216.71,7.13972631]
[1737144050891,7.13972631,216.8,216.76,4.6097]
[1737144051090,7.13972631,216.8,216.73,7.13972631]
[1737144051091,1.4805,216.87,216.73,7.13972631]
[1737144051293,7.13972631,216.8,216.73,7.13972631]
[1737144052096,7.13972631,216.8,216.76,4.6097]
[1737144052296,7.13972631,216.8,216.73,7.13972631]
[1737144052794,7.13972631,216.8,216.76,4.6097]
[1737144052998,7.13972631,216.78,216.76,4.6097]
[1737144053190,7.13972631,216.78,216.72,4.78]
[1737144053494,7.13972631,216.78,216.75,4.6101]
[1737144053691,7.13972631,216.76,216.68,101.09420111]
[1737144053893,4.78,216.8,216.6,7.13972631]
[1737144054100,4.78,216.8,216.6,10.31062631]
[1737144054101,7.13972631,216.68,216.6,10.31062631]
[1737144054495,7.13972631,216.68,216.66,4.612]
[1737144054897,7.13972631,216.69,216.66,4.612]
[1737144055196,1.57,216.75,216.64,4.6124]
[1737144055197,7.13972631,216.67,216.64,4.6124]
[1737144056495,7.13972631,216.65,216.62,4.6127]
[1737144057400,7.13972631,216.65,216.63,4.6126]
[1737144058397,7.13972631,216.65,216.62,4.6128]
[1737144060604,7.13972631,216.63,216.59,12.35950039]
[1737144060805,7.13972631,216.61,216.59,12.35950039]
[1737144061101,7.13972631,216.63,216.59,16.97280039]
[1737144061407,3.1116,216.74,216.59,12.35950039]
[1737144061797,7.13972631,216.69,216.62,7.13972631]
[1737144061998,7.13972631,216.69,216.66,4.612]
[1737144062305,7.13972631,216.67,216.6,7.13972631]
[1737144062501,3.1116,216.74,216.62,7.13972631]
[1737144062707,7.13972631,216.72,216.64,7.13972631]
[1737144063110,7.13972631,216.72,216.68,4.6114]
[1737144063306,7.13972631,216.7,216.68,4.6114]
[1737144064206,7.13972631,216.7,216.67,4.6118]
[1737144064511,7.13972631,216.68,216.61,11.91972631]
[1737144064707,7.13972631,216.68,216.61,4.78]
[1737144064905,7.13972631,216.66,216.63,4.6126]
[1737144066506,7.13972631,216.69,216.65,4.6122]
[1737144066904,3.1116,216.74,216.63,7.13972631]
[1737144067105,7.13972631,216.7,216.65,4.6122]
[1737144067409,7.13972631,216.7,216.61,4.78]
[1737144067410,7.13972631,216.68,216.61,11.91972631]
[1737144067608,3.1116,216.74,216.61,11.91972631]
[1737144067808,7.13972631,216.69,216.61,11.91972631]
[1737144068207,3.1116,216.74,216.63,7.13972631]
[1737144068407,7.13972631,216.72,216.65,7.13972631]
[1737144068610,86.32,216.9,216.67,7.13972631]
[1737144068611,3.1296,216.84,216.67,7.13972631]
[1737144068803,7.13972631,216.76,216.73,4.6105]
[1737144069002,7.13972631,216.74,216.67,7.13972631]
[1737144069206,7.13972631,216.74,216.65,7.13972631]
[1737144069407,7.13972631,216.74,216.62,16.9219]
[1737144069612,7.13972631,216.72,216.65,7.13972631]
[1737144069812,7.13972631,216.74,216.65,7.13972631]
[1737144070109,7.13972631,216.72,216.69,4.6112]
[1737144070612,7.13972631,216.7,216.62,3.1219]
[1737144070807,7.13972631,216.7,216.63,7.13972631]